Cogmind - Beta 11.1 @@@ ROGUE MODE // 2022.06.07 @ 21:32:08 Player: Cyurio Result: Destroyed by H-61 Shepherd with Heavy Assault Cannon Performance ------------- Evolutions (2) 1000 Regions Visited (4) 800 Robots Destroyed (38) 190 Value Destroyed (1400) 1400 Prototype IDs (7) 140 Alien Tech Used (0) 0 Bonus (155) 155 TOTAL SCORE: 3685 Bonus ------- Follower Combat Kills 155 Cogmind --------- Core Integrity 0/550 Matter 91/300 Energy 96/100 System Corruption 3% Temperature Cool (55) Movement Core (300) Ox5 Location -8/Materials Parts ------- > --- POWER (2) -------- (None) > --- PROPULSION (3) --- (None) > --- UTILITY (4) ------ Medium Storage Unit Visual Processing Unit Targeting Computer > --- WEAPON (2) ------- Heavy Particle Cannon > --- INVENTORY (10) --- Disposable Heat Sink Large Storage Unit Advanced Weight Redist. System EM Pulse Cannon Datajack Peak State ------------ > --- POWER ------------ Cooled Ion Engine Light Deuterium Engine > --- PROPULSION ------- Improved Aluminum Leg Improved Aluminum Leg Carbon-fiber Leg > --- UTILITY ---------- Disposable Heat Sink Large Storage Unit Visual Processing Unit Targeting Computer > --- WEAPON ----------- Particle Cannon Gauss Rifle > --- INVENTORY -------- Light Deuterium Engine Aluminum Leg Disposable Heat Sink Medium Storage Unit Advanced Weight Redist. System Recoil Stabilizer Improved Weapon Shielding EM Shotgun Rocket Launcher Datajack [Rating: 27] Favorites ----------- Power Ion Engine Engine Ion Engine Propulsion Improved Aluminum Leg Leg Improved Aluminum Leg Utility Disposable Heat Sink Device Disposable Heat Sink Storage Medium Storage Unit Processor Targeting Computer Protection Improved Weapon Shielding Weapon Beam Rifle Energy Gun Beam Rifle Energy Cannon Particle Cannon Ballistic Gun Light Assault Rifle Ballistic Cannon Flak Cannon Launcher Rocket Launcher Build | -11 -10 -10 -9 -8 ------- Run | Scr Mat Min Mat Mat Slots Evolved 4 | . . . 2 2 Power 1 | . . . 1 . Propulsion 1 | . . . . 1 Utility 2 | . . . 1 1 Weapon . | . . . . . Parts Attached 51 | . 5 6 15 25 Power 8 | . 1 . 5 2 Engine 8 | . 1 . 5 2 Core . | . . . . . Reactor . | . . . . . Propulsion 14 | . 3 1 3 7 Treads . | . . . . . Leg 14 | . 3 1 3 7 Wheel . | . . . . . Hover . | . . . . . Flight . | . . . . . Utility 11 | . 1 . 5 5 Device 3 | . 1 . 1 1 Storage 5 | . . . 3 2 Processor 2 | . . . 1 1 Hackware . | . . . . . Protection 1 | . . . . 1 Artifact . | . . . . . Weapon 18 | . . 5 2 11 Energy Gun 4 | . . 1 . 3 Energy Cannon 4 | . . . . 4 Ballistic Gun 4 | . . 1 2 1 Ballistic Cannon 1 | . . . . 1 Launcher 5 | . . 3 . 2 Special Weapon . | . . . . . Impact Weapon . | . . . . . Slashing Weapon . | . . . . . Piercing Weapon . | . . . . . Special Melee Weapon . | . . . . . Unidentified Prototypes 1 | . . . 1 . Corrupted Parts 1 | . . . . 1 System Corruption 2 | . . . . 2 Parts Lost 27 | . . 3 3 21 Power 5 | . . . 2 3 Propulsion 10 | . . 1 1 8 Utility 3 | . . . . 3 Weapon 9 | . . 2 . 7 Highest Loss Streak 9 | . . 2 1 9 To Critical Strikes . | . . . . . Average Slot Usage (%) 96 | . 96 98 96 93 Engine 17 | . 14 14 21 17 Leg 24 | . 28 27 21 22 Device 10 | . 10 14 11 8 Storage 11 | . 14 14 11 9 Processor 8 | . . . 11 17 Energy Gun 10 | . 14 14 11 5 Energy Cannon 1 | . . . . 6 Ballistic Gun 6 | . 14 1 8 2 Launcher 2 | . . 11 . . Naked Turns . | . . . . . Heaviest Build 42 | 13 14 18 35 42 Greatest Support 41 | 20 26 26 26 41 Greatest Overweight (x) 6 | . 1 . 1 6 Average Overweight (x) . | . . . . . Largest Inventory Capacity 15 | 8 8 8 15 15 Average Capacity 9 | 8 8 8 9 11 Most Carried 11 | 6 8 8 10 11 Average Carried 8 | 6 7 7 8 8 Final Capacity 10 | 8 8 8 10 10 Final Carried 10 | 6 8 7 10 5 Class Distribution -------------------- 94% | Mutant 5% | Scavenger-Mutant Dominant Class ---------------- Mutant | -10/Materials Mutant | -10/Mines Mutant | -9/Materials Mutant | -8/Materials Resources | -11 -10 -10 -9 -8 ----------- Run | Scr Mat Min Mat Mat Matter Collected 761 | 200 . 89 251 221 Remotely . | . . . . . Salvage Created 1373 | . 51 230 493 599 Parts 83 | . 8 13 30 32 Haulers Intercepted 3 | . . . 2 1 Recyclers Shooed 1 | . . . . 1 Parts Field Recycled . | . . . . . Retrieved Matter . | . . . . . Parts Self-Destructed . | . . . . . Prevented . | . . . . . Kills | -11 -10 -10 -9 -8 ------- Run | Scr Mat Min Mat Mat Combat Hostiles Destroyed 32 | . 3 6 8 15 Guns 16 | . 3 3 7 3 Cannons 8 | . . . . 8 AOE 7 | . . 3 . 4 Classes Destroyed 8 | . 1 2 2 3 Worker 1 | . . . . 1 Hauler 3 | . . . 2 1 Watcher 2 | . . . 1 1 Swarmer 5 | . 3 . . 2 Grunt 16 | . . 4 4 8 Sentry 7 | . . 2 4 1 Specialist 2 | . . . . 2 Hunter 2 | . . . . 2 Best Kill Streak 8 | . 3 2 3 8 Combat Bots Only 7 | . 3 2 2 7 Max Kills in Single Turn 2 | . 1 2 1 2 Gunslinging . | . . . . . Exploded 2 | . . 2 . 1 Melee . | . . . . . Uniques/NPCs Destroyed . | . . . . . Combat | -11 -10 -10 -9 -8 -------- Run | Scr Mat Min Mat Mat Damage Taken 3580 | . 116 427 528 2509 Core 868 | . 30 135 111 592 Absorbed by Shields . | . . . . . Redirected to Shielding 108 | . . . . 108 Core Remaining (%) 68 | 100 . 34 72 . Volleys Fired 127 | . 10 21 37 59 Largest 2 | . 2 2 2 2 Hottest 124 | . 60 60 76 124 Shots Fired 224 | . 20 22 73 109 Gun 161 | . 20 16 73 52 Cannon 53 | . . . . 53 Launcher 10 | . . 6 . 4 Special . | . . . . . Kinetic 91 | . 10 1 36 44 Thermal 94 | . . 4 37 53 Explosive 10 | . . 6 . 4 Electromagnetic 29 | . 10 11 . 8 Robot Hit Streak 25 | . 5 4 25 11 Robot Miss Streak 6 | . 2 2 1 6 Penetration Max . | . . . . . Secondary Targets . | . . . . . Shots Hit Robots 157 | . 12 15 60 70 Core Hits 84 | . 4 11 22 47 Critical Kills . | . . . . . Critical Parts Destroyed . | . . . . . Critical Strikes 1 | . . . 1 . Burn 1 | . . . 1 . Melee Attacks . | . . . . . Impact . | . . . . . Slashing . | . . . . . Piercing . | . . . . . Sneak Attacks . | . . . . . Combat Hostiles . | . . . . . Follow-up Attacks . | . . . . . Damage Inflicted 3375 | . 113 386 686 2190 Guns 1516 | . 113 138 686 579 Cannons 748 | . . . . 748 Explosions 1111 | . . 248 . 863 Melee . | . . . . . Ramming . | . . . . . Kinetic 935 | . 47 . 236 652 Thermal 1074 | . . 43 450 581 Explosive 912 | . . 248 . 664 Electromagnetic 454 | . 66 95 . 293 Impact . | . . . . . Slashing . | . . . . . Piercing . | . . . . . Highest Corruption 3 | . . . . 3 Average Corruption 2 | . . . . 2 Corruption Purged . | . . . . . Corruption Blocked . | . . . . . Effects 8 | . . . . 8 Message Errors 4 | . . . . 4 Matter Fused 2 | . . . . 2 Heat Flow Errors 1 | . . . . 1 Data Loss (minor) 1 | . . . . 1 Overload Shots . | . . . . . Overflow Damage 63 | . . . . 63 Projectiles . | . . . . . Explosions 63 | . . . . 63 Melee . | . . . . . Knockbacks 4 | . . . . 4 Impact . | . . . . . Kinetic 3 | . . . . 3 Secondary 1 | . . . . 1 Self-Inflicted Damage 190 | . . 22 . 168 Shots 7 | . . 1 . 6 Rammed . | . . . . . Targets Rammed . | . . . . . Kicked . | . . . . . Crushed . | . . . . . Highest Temperature 458 | . 60 108 198 458 Average Temperature 110 | . 36 55 78 147 Received Heat Transfer 1224 | . . 174 285 765 Effects 5 | . . . . 5 Shutdowns 2 | . . . . 2 Energy Bleed 2 | . . . . 2 Short Circuit 1 | . . . . 1 Siege Activations . | . . . . . Robots Corrupted . | . . . . . Combat Hostiles . | . . . . . Parts Fried 2 | . . . . 2 Impact Corruptions . | . . . . . Robots Melted 1 | . . . 1 . Combat Hostiles 1 | . . . 1 . Parts Melted 6 | . . . 5 1 Heat Transferred 2418 | . . 111 1221 1086 Parts Sabotaged . | . . . . . Parts Stolen . | . . . . . Parts Stripped . | . . . . . Power Chain Reactions 1 | . . . . 1 Missiles Intercepted . | . . . . . Alert | -11 -10 -10 -9 -8 ------- Run | Scr Mat Min Mat Mat Peak Influence 335 | . 109 178 304 335 Initial 65 | . . 42 42 65 Average 121 | . 34 97 164 131 Maximum Alert Level 1 | . . . 1 1 Low Security (%) 81 | 100 100 100 62 82 Level 1 18 | . . . 37 17 Level 2 . | . . . . . Level 3 . | . . . . . Level 4 . | . . . . . Level 5 . | . . . . . High Security . | . . . . . Max Security . | . . . . . Squads Dispatched 7 | . . . 1 6 Investigation 4 | . . . 1 3 Extermination . | . . . . . Reinforcement 3 | . . . . 3 Assault . | . . . . . Garrison . | . . . . . Intercept . | . . . . . Searches Triggered . | . . . . . Construction Impeded 1 | . . . . 1 Haulers Reinforced . | . . . . . Active Scanning Responses . | . . . . . Cargo Convoy Interrupts . | . . . . . Stealth | -11 -10 -10 -9 -8 --------- Run | Scr Mat Min Mat Mat Distress Signals 2 | . . . 2 . Communications Jammed . | . . . . . Distress Signals . | . . . . . Times Spotted 56 | . 6 6 21 23 Peak Tracking Total 5 | . 3 2 5 5 Tactical Retreats 5 | . 1 . . 4 Traps | -11 -10 -10 -9 -8 ------- Run | Scr Mat Min Mat Mat Traps Triggered 3 | . . . 1 2 Indirectly . | . . . . . Trap Hack Attempts . | . . . . . Triggered . | . . . . . Disarmed 3 | . 3 . . . Reprogrammed . | . . . . . Reused . | . . . . . Traps Extracted . | . . . . . Installed . | . . . . . Triggered . | . . . . . Machines | -11 -10 -10 -9 -8 ---------- Run | Scr Mat Min Mat Mat Machines Disabled 6 | . . 1 . 5 Max in Single Turn 2 | . . 1 . 2 Machines Sabotaged . | . . . . . Garrisons Compromised . | . . . . . Overloaded Fab Kills . | . . . . . Hacking | -11 -10 -10 -9 -8 --------- Run | Scr Mat Min Mat Mat Machines Accessed 12 | . 4 . 5 3 Terminals 12 | . 4 . 5 3 Fabricators . | . . . . . Repair Stations . | . . . . . Recycling Units . | . . . . . Scanalyzers . | . . . . . Garrison Access . | . . . . . Total Hacks 35 | . 10 . 17 8 Successful 20 | . 6 . 9 5 Failed 15 | . 4 . 8 3 Catastrophic 3 | . 1 . 1 1 Database Lockouts . | . . . . . Manual 4 | . 2 . 2 . Terminals 35 | . 10 . 17 8 Fabricators . | . . . . . Repair Stations . | . . . . . Recycling Units . | . . . . . Scanalyzers . | . . . . . Garrison Access . | . . . . . Terminal Hacks 20 | . 6 . 9 5 Record 3 | . 1 . 2 . Prototype ID Bank 3 | . 2 . . 1 Branch Access Points 1 | . 1 . . . Emergency Access Points 2 | . . . 2 . Alert Level 3 | . . . 1 2 Locate Traps 1 | . 1 . . . Disarm Traps 1 | . 1 . . . Dispatch Records 2 | . . . 1 1 Investigation Status 1 | . . . 1 . Hauler Manifests 2 | . . . 1 1 Zone Layout 1 | . . . 1 . Fabricator Hacks . | . . . . . Repair Station Hacks . | . . . . . Recycling Unit Hacks . | . . . . . Scanalyzer . | . . . . . Garrison Access Hacks . | . . . . . Unauthorized Hacks . | . . . . . Terminals . | . . . . . Fabricators . | . . . . . Repair Stations . | . . . . . Recycling Units . | . . . . . Scanalyzers . | . . . . . Garrison Access . | . . . . . Data Cores Recovered . | . . . . . Used . | . . . . . Hacking Detections 9 | . 3 . 3 3 Full Trace Events 1 | . . . . 1 Feedback Events . | . . . . . Feedback Blocked . | . . . . . Robot Schematics Acquired . | . . . . . Robots Built . | . . . . . Authchips . | . . . . . Time . | . . . . . Total Robot Build Rating . | . . . . . Part Schematics Acquired . | . . . . . Parts Built . | . . . . . Authchips . | . . . . . Time . | . . . . . Total Part Build Rating . | . . . . . Parts Repaired . | . . . . . Time . | . . . . . Parts Recycled . | . . . . . Recycled Matter . | . . . . . Retrieved Matter . | . . . . . Retrieved Components . | . . . . . Parts Scanalyzed . | . . . . . Part Schematics Acquired . | . . . . . Parts Damaged . | . . . . . Bothacking | -11 -10 -10 -9 -8 ------------ Run | Scr Mat Min Mat Mat Used RIF Installer . | . . . . . Robots Hacked . | . . . . . Non-combat . | . . . . . Combat . | . . . . . Robot Hacks Applied . | . . . . . Relay Couplers Released . | . . . . . Fabnet Peak Effective % . | . . . . . Robots Rewired . | . . . . . Allies Hacked . | . . . . . Hacks Repelled . | . . . . . Allies | -11 -10 -10 -9 -8 -------- Run | Scr Mat Min Mat Mat Total Allies 3 | . . 3 . . Largest Group 3 | . . 3 3 . Highest-Rated Group 40 | . . 40 40 . Highest-Rated Ally 16 | . . 16 16 . Total Orders . | . . . . . Ally Attacks 57 | . . . 57 . Total Damage 567 | . . . 567 . Kills 8 | . . . 8 . Allies Corrupted . | . . . . . Allies Melted . | . . . . . Intel | -11 -10 -10 -9 -8 ------- Run | Scr Mat Min Mat Mat Robot Analysis Total . | . . . . . Derelict Logs Recovered 1 | . . 1 . . Drone Launches . | . . . . . Drone Recoveries . | . . . . . Exploration | -11 -10 -10 -9 -8 ------------- Run | Scr Mat Min Mat Mat Turns Passed 2677 | 6 390 574 958 749 Spaces Moved 1530 | 6 283 410 518 313 Core 1 | . . . . 1 Treads . | . . . . . Legs 1529 | 6 283 410 518 312 Wheels . | . . . . . Hover . | . . . . . Flight . | . . . . . Fastest Speed 120 | 120 120 120 120 120 Average Speed 133 | 120 120 120 136 157 Slowest Speed 350 | 120 190 120 190 350 Overloaded Moves . | . . . . . Propulsion Burnouts . | . . . . . Robots Hopped . | . . . . . Cave-ins Triggered . | . . . . . Exploration Rate (%) 39 | 2 46 76 41 34 Regions Visited 4 Branch Regions 1 Pre-discovered Areas . | . . . . . Known Exits Taken 1 | . 1 . . . Unknown Exits Taken 3 | 1 . 1 1 . Scrap Searched 1 | . . 1 . . Spaces Dug . | . . . . . Terrain Destroyed 135 | . . 44 . 91 Melee . | . . . . . Projectile . | . . . . . AOE 135 | . . 44 . 91 Terrain Rammed . | . . . . . Walls Destroyed . | . . . . . Machines Disabled . | . . . . . Actions | -11 -10 -10 -9 -8 --------- Run | Scr Mat Min Mat Mat Total 1951 | 5 318 468 703 457 Wait 201 | . 3 31 119 48 Move 1526 | 5 282 409 517 313 Hop . | . . . . . Pick Up 25 | . 8 1 7 9 Fast Attach 8 | . 2 1 1 4 Attach 19 | . . 2 4 13 Detach 1 | . . . 1 . Swap 24 | . 3 3 10 8 Drop 20 | . 10 . 7 3 Fire 127 | . 10 21 37 59 Melee . | . . . . . Ram . | . . . . . Kick . | . . . . . Crush . | . . . . . Escape Stasis . | . . . . . Rewire . | . . . . . Trap . | . . . . . Miscellaneous . | . . . . . Route ------- -11/Scrapyard -10/Materials (discovered 2 exits: *Mat / *Min) -10/Mines -9/Materials (discovered 3 exits: *Mat / [*Min x2]) -8/Materials History --------- Turn | Location | Event 1 | -11/Scrapyard | Discovered new exit (range 1) 7 | -11/Scrapyard | Entered Materials 305 | -10/Materials | Discovered new exit (range 7) 311 | -10/Materials | Identified exit to Mines 316 | -10/Materials | Build established: Mutant 397 | -10/Materials | Entered Mines 534 | -10/Mines | Core integrity fell below 50% 655 | -10/Mines | Received a Rocket Launcher from a helpful Derelict 923 | -10/Mines | Learned Materials stockpile data 930 | -10/Mines | Assisted by bots powering up and referring to "LRC-V3" 946 | -10/Mines | Discovered new exit (range 6) 971 | -10/Mines | Entered Materials 971 | -9/Materials | Accompanied by 3 allies 971 | -9/Materials | Evolved 2 slots: Power x1, Utility x1 1202 | -9/Materials | Discovered new exit (range 3) 1467 | -9/Materials | Discovered new exit (range 18) 1863 | -9/Materials | Discovered new exit (range 8) 1929 | -9/Materials | Entered another Materials area 1929 | -8/Materials | Evolved 2 slots: Propulsion x1, Utility x1 2338 | -8/Materials | Lost 6 parts (1p3n1u1w) 2524 | -8/Materials | Lost 3 parts (1n2w) 2637 | -8/Materials | Core integrity fell below 50% 2658 | -8/Materials | Core integrity fell below 20% 2678 | -8/Materials | Destroyed by H-61 Shepherd with Heavy Assault Cannon Last Messages --------------- local area. 02668_ H-61 Shepherd calls for reinforcements. 02668_ ALERT: Hostile activity reported, dispatching reinforcements to area. 02669_ U-05 Engineer lays Concrete. 02669_ X-57 Shotgunner destroyed. 02670_ Penetrated by Slug. 02670_ Particle Gun destroyed. 02670_ Aluminum Leg destroyed. 02671_ U-05 Engineer lays Concrete. 02671_ U-05 Engineer builds a Wall. 02674_ Penetrated by Slug. 02674_ Aluminum Leg destroyed. 02674_ Lgt. Deuterium Engine destroyed. 02674_ Knocked back. 02675_ Acquired 3 matter. 02675_ G-47 Trooper destroyed. 02675_ U-05 Engineer lays Concrete. 02676_ U-05 Engineer builds a Wall. 02678_ Rocket Launcher destroyed. Map ----- +----------------------------------------------------+ | ?# # #??????????????????????????????????? | | ?# """ # #????????????? ###?????????????????? | | ?# """ ! # #########+## #?????????????????? | | ?# """ # """ #?????????????????? | | ?# # % "T" #?????????????????? | | ?########## #?????????????????? | | ??????????# #######? ???????????????????? | | ??????????# # ###/####????????????????? | | ??????????# ! + !// # ?????????????????? | | ??????????# # /// # ??????????????????? | | ??????????# # /// "???????????????????? | | ??????????# !!# H "???????????????????? | | ??????????# !!#[ [ ????????????????????? | | ??????????# u# [ !????????????????????? | | ??????????# # ????????????????????? | | ??????????# % ##### #??????????????? | | ??????????# % % #??????????????? | | ??????????# m ##### #??????????????? | | ??????????# % #????????????????????? | | ??????????# """ = ##????????????????????? | | ??????????# """ ##?????????????????????? | | ??????????# """ #### #?????????????????????? | | ??????????# """ # u ##?????????????????????? | | ??????????# + !#??????????????????????? | | ??????????# # """%%####### #??????????????? | | ??????????# # "R @/ #??????????????? | | ??????????###+###### """ ####### #??????????????? | | ???????????? ??????# % !#??????????????????????? | | ???????????????????#####;##??????????????????????? | | ???????????????????????###???????????????????????? | | ?????????????????????????????????????????????????? | | ?????????????????????????????????????????????????? | | ?????????????????????????????????????????????????? | | ?????????????????????????????????????????????????? | | ?????????????????????????????????????????????????? | | ?????????????????????????????????????????????????? | | | | | | | | | | | | | | | | | | | | | | | | | | | | | +----------------------------------------------------+ Best States ------------- Heat Dissipation 31 Coolant Potential 50 Energy Generation 23 Energy Capacity 430 Matter Stores 300 Matter Capacity 300 Sight Range 18 Terrain Scan Density 10 Weapon Shielding 66 Evasion (%) 55 Targeting Accuracy 5 Recoil Reduction 4 Item Schematics ----------------- None Robot Schematics ------------------ None Fabricated ------------ Nothing Alien Tech Used ----------------- None Achievements -------------- None Challenges ------------ None Game ------ Seed TractorFrostScreen Manual? 0 Play Time 00:33:25 Cumulative 33.2 hours Start 2022.06.07 @ 20:58:35 End 2022.06.07 @ 21:32:08 Sessions 1 Manual Loads 0 Difficulty Rogue Special Mode None Game No. 53 Rogue 53 Adventurer 0 Explorer 0 Win Type - Total 0 Types 0/0/0/0/0/0/0/0/0 Lore% 25 Gallery% 29 Achievement% 26 Wizard Run 0 Options --------- ASCII 0 Keyboard 1 Movement Vi Keybinds 0 Fullscreen 1 Font 24/Smallcaps Map View 76x50 Tactical HUD 1 Map Filters NONE Filters NONE Steam 1 RUN: 2e65eefe-234a-4e20-bf9b-f10a18f7ef24